fUSD/lending_fUSD_20260510
["ID","MTS","AMOUNT","RATE_DAILY","PERIOD"]
[421980435,1778400736000,-848.41741587,0.000411,120]
[421980446,1778400736000,-3308.252344,0.00041205,120]
[421980426,1778400736000,-848.41741587,0.000411,120]
[421980431,1778400736000,-848.41741587,0.000411,120]
[421980401,1778400736000,-363.60746394,0.000411,120]
[421980404,1778400736000,-363.60746394,0.000411,120]
[421980403,1778400736000,-363.60746394,0.000411,120]
[421980413,1778400736000,-363.60746394,0.000411,120]
[421980406,1778400736000,-363.60746394,0.000411,120]
[421980405,1778400736000,-363.60746394,0.000411,120]
[421980407,1778400736000,-363.60746394,0.000411,120]
[421980408,1778400736000,-363.60746394,0.000411,120]
[421980410,1778400736000,-363.60746394,0.000411,120]
[421980409,1778400736000,-363.60746394,0.000411,120]
[421980412,1778400736000,-363.60746394,0.000411,120]
[421980418,1778400736000,-848.41741587,0.000411,120]
[421980417,1778400736000,-848.41741587,0.000411,120]
[421980414,1778400736000,-363.60746394,0.000411,120]
[421980419,1778400736000,-848.41741587,0.000411,120]
[421980423,1778400736000,-848.41741587,0.000411,120]
[421980424,1778400736000,-848.41741587,0.000411,120]
[421980421,1778400736000,-848.41741587,0.000411,120]
[421980416,1778400736000,-363.6,0.000411,120]
[421980415,1778400736000,-363.60746394,0.000411,120]
[421980422,1778400736000,-848.41741587,0.000411,120]
[421980411,1778400736000,-363.60746394,0.000411,120]
[421980420,1778400736000,-848.41741587,0.000411,120]
[421980486,1778400737000,-200.0,0.00041371,8]
[421980491,1778400737000,-173.59,0.00041399,13]
[421980481,1778400737000,-151.79,0.00041369,120]
[421980492,1778400737000,-1000.0,0.000414,120]
[421980487,1778400737000,-210.38,0.00041399,13]
[421980490,1778400737000,-173.6,0.00041399,13]
[421980478,1778400737000,-1000.0,0.000413,120]
[421980485,1778400737000,-200.0,0.00041371,8]
[421980488,1778400737000,-210.38,0.00041399,13]
[421980494,1778400737000,-151.81,0.00041409,120]
[421980496,1778400737000,-178.98,0.00041471,60]
[421980493,1778400737000,-2018.01783294,0.00041405,120]
[421980495,1778400737000,-151.79,0.00041469,120]
[421980507,1778400737000,-200.0,0.00041507,7]
[421980498,1778400737000,-153.93,0.0004149,120]
[421980508,1778400737000,-200.0,0.00041507,7]
[421980509,1778400737000,-151.81,0.00041509,120]
[421980510,1778400737000,-151.79,0.00041569,120]
[421980501,1778400737000,-2672.27,0.000415,30]
[421980500,1778400737000,-2672.269,0.000415,30]
[421980497,1778400737000,-218.5425515,0.00041473,120]
[421980499,1778400737000,-2672.269,0.000415,30]
[421980502,1778400737000,-183.60678246,0.000415,120]
[421980504,1778400737000,-101052.06,0.000415,120]
[421980505,1778400737000,-2976.36050943,0.000415,120]
[421980506,1778400737000,-1629.61969543,0.000415,120]
[421980473,1778400737000,-1280.73,0.0004125,120]
[421980489,1778400737000,-173.6,0.00041399,13]
[421980472,1778400737000,-150.0,0.00041242,30]
[421980453,1778400737000,-151.0,0.00041205,120]
[421980483,1778400737000,-186.0,0.0004137,90]
[421980459,1778400737000,-5290.682669,0.00041205,14]
[421980457,1778400737000,-5290.682669,0.00041205,14]
[421980458,1778400737000,-151.0,0.00041205,120]
[421980454,1778400737000,-5290.682669,0.00041205,14]
[421980503,1778400737000,-1000.0,0.000415,120]
[421980456,1778400737000,-210.744982,0.00041205,120]
[421980455,1778400737000,-151.0,0.00041205,120]
[421980452,1778400737000,-151.0,0.00041205,120]
[421980468,1778400737000,-3034.982155,0.00041205,120]
[421980462,1778400737000,-5290.682669,0.00041205,14]
[421980466,1778400737000,-3034.982155,0.00041205,120]
[421980471,1778400737000,-151.81,0.00041209,120]
[421980464,1778400737000,-505.539602,0.00041205,120]
[421980467,1778400737000,-3034.982155,0.00041205,120]
[421980465,1778400737000,-505.539602,0.00041205,120]
[421980463,1778400737000,-505.539602,0.00041205,120]
[421980460,1778400737000,-151.0,0.00041205,120]
[421980469,1778400737000,-3034.982155,0.00041205,120]
[421980461,1778400737000,-505.539602,0.00041205,120]
[421980470,1778400737000,-173.347588,0.00041205,120]
[421980474,1778400737000,-157.49,0.0004125,120]
[421980484,1778400737000,-200.0,0.00041371,8]
[421980476,1778400737000,-193.84,0.00041294,2]
[421980480,1778400737000,-151.81,0.00041309,120]
[421980479,1778400737000,-155.0,0.000413,120]
[421980475,1778400737000,-151.79,0.00041269,120]
[421980477,1778400737000,-779.0,0.000413,120]
[421980482,1778400737000,-1561.0,0.0004137,120]
[421980511,1778400737000,-4245.01055548,0.0004158,120]
[421980516,1778400737000,-155.61,0.00041599,13]
[421980570,1778400737000,-160.63,0.0004175,120]
[421980544,1778400737000,-392.41299593,0.00041649,120]
[421980543,1778400737000,-225.35760192,0.00041649,120]
[421980550,1778400737000,-216.59482723,0.00041649,120]
[421980548,1778400737000,-255.1016442,0.00041649,120]
[421980549,1778400737000,-472.59634719,0.00041649,120]
[421980559,1778400737000,-151.79,0.00041669,120]
[421980552,1778400737000,-547.0,0.00041649,30]
[421980551,1778400737000,-179.07276358,0.00041649,120]
[421980556,1778400737000,-533.0,0.00041649,30]
[421980557,1778400737000,-533.0,0.00041649,30]
[421980555,1778400737000,-549.0,0.00041649,30]
[421980554,1778400737000,-549.0,0.00041649,30]
[421980558,1778400737000,-150.0,0.00041652,120]
[421980562,1778400737000,-1000.0,0.000417,120]
[421980563,1778400737000,-194.0,0.000417,120]
[421980567,1778400737000,-163.0,0.00041725,30]
[421980569,1778400737000,-1306.33,0.0004175,120]
[421980566,1778400737000,-151.81,0.00041709,120]
[421980560,1778400737000,-5003.65890118,0.00041681,60]
[421980561,1778400737000,-1143.5,0.00041694,120]
[421980514,1778400737000,-150.0,0.00041589,30]
[421980568,1778400737000,-13890.66689554,0.00041747,2]
[421980564,1778400737000,-2418.79427129,0.000417,2]
[421980565,1778400737000,-806.83757011,0.000417,2]
[421980571,1778400737000,-230.61,0.00041757,2]
[421980573,1778400737000,-1000.0,0.0004177,3]
[421980572,1778400737000,-151.79,0.00041769,120]
[421980546,1778400737000,-435.61162537,0.00041649,120]
[421980547,1778400737000,-211.72986777,0.00041649,120]
[421980553,1778400737000,-538.0,0.00041649,30]
[421980539,1778400737000,-1000.0,0.00041644,120]
[421980512,1778400737000,-150.0,0.00041589,30]
[421980515,1778400737000,-150.0,0.00041589,30]
[421980513,1778400737000,-150.0,0.00041589,30]
[421980541,1778400737000,-150.0,0.00041649,6]
[421980522,1778400737000,-2000.0,0.00041608,120]
[421980520,1778400737000,-1826.31086884,0.00041608,120]
[421980518,1778400737000,-1000.0,0.000416,120]
[421980521,1778400737000,-494.91240732,0.00041608,120]
[421980519,1778400737000,-541.416078,0.00041608,64]
[421980525,1778400737000,-153.0,0.00041609,120]
[421980534,1778400737000,-550.33105093,0.0004161,30]
[421980528,1778400737000,-156.0,0.00041609,120]
[421980535,1778400737000,-177.74,0.0004161,10]
[421980527,1778400737000,-632.0,0.00041609,120]
[421980517,1778400737000,-155.62,0.00041599,13]
[421980526,1778400737000,-254.0,0.00041609,120]
[421980530,1778400737000,-151.81,0.00041609,120]
[421980542,1778400737000,-3231.08052826,0.00041649,120]
[421980537,1778400737000,-893.48,0.00041644,120]
[421980545,1778400737000,-304.47281548,0.00041649,120]
[421980538,1778400737000,-1000.0,0.00041644,120]
[421980536,1778400737000,-1561.0,0.00041644,120]
[421980540,1778400737000,-1895.56889242,0.00041644,120]
[421980533,1778400737000,-500.0,0.0004161,30]
[421980531,1778400737000,-500.0,0.0004161,30]
[421980524,1778400737000,-151.0,0.00041609,120]
[421980529,1778400737000,-250.0,0.00041609,30]
[421980523,1778400737000,-160.36396542,0.00041609,120]
[421980532,1778400737000,-500.0,0.0004161,30]
[421980603,1778400738000,-1000.0,0.00041859,15]
[421980606,1778400738000,-1000.0,0.00041859,15]
[421980596,1778400738000,-949.0,0.00041832,60]
[421980604,1778400738000,-1000.0,0.00041859,15]
[421980598,1778400738000,-268.90778227,0.00041832,60]
[421980600,1778400738000,-250.0,0.0004184,108]
[421980597,1778400738000,-949.0,0.00041832,60]
[421980599,1778400738000,-250.0,0.00041832,108]
[421980607,1778400738000,-1000.0,0.00041859,15]
[421980614,1778400738000,-1000.0,0.00041859,15]
[421980610,1778400738000,-1000.0,0.00041859,15]
[421980613,1778400738000,-1000.0,0.00041859,15]
[421980612,1778400738000,-1000.0,0.00041859,15]
[421980608,1778400738000,-1000.0,0.00041859,15]
[421980609,1778400738000,-1145.60751329,0.00041859,15]
[421980611,1778400738000,-1000.0,0.00041859,15]
[421980617,1778400738000,-250.0,0.00041861,110]
[421980616,1778400738000,-165.21217631,0.00041859,15]
[421980618,1778400738000,-250.0,0.00041867,110]
[421980620,1778400738000,-1000.0,0.0004187,3]
[421980605,1778400738000,-1000.0,0.00041859,15]
[421980615,1778400738000,-1000.0,0.00041859,15]
[421980602,1778400738000,-250.0,0.00041854,109]
[421980621,1778400738000,-1000.0,0.0004187,3]
[421980595,1778400738000,-949.0,0.00041832,60]
[421980575,1778400738000,-1779.0718323,0.0004177,3]
[421980578,1778400738000,-427.48575939,0.0004179,15]
[421980579,1778400738000,-462.96257807,0.0004179,15]
[421980577,1778400738000,-203.44005567,0.0004177,120]
[421980576,1778400738000,-193.99415697,0.0004177,120]
[421980580,1778400738000,-1007.78428758,0.00041792,120]
[421980574,1778400738000,-1000.0,0.0004177,3]
[421980582,1778400738000,-507.0,0.00041794,30]
[421980592,1778400738000,-949.0,0.00041832,60]
[421980593,1778400738000,-949.0,0.00041832,60]
[421980583,1778400738000,-626291.3891,0.000418,2]
[421980585,1778400738000,-1000.0,0.000418,120]
[421980587,1778400738000,-252.70543266,0.000418,30]
[421980584,1778400738000,-1167.73,0.000418,120]
[421980588,1778400738000,-250.0,0.00041808,106]
[421980586,1778400738000,-1238.42814177,0.000418,120]
[421980590,1778400738000,-250.0,0.00041816,107]
[421980581,1778400738000,-2325.0,0.00041794,120]
[421980591,1778400738000,-250.0,0.00041824,107]
[421980589,1778400738000,-151.81,0.00041809,120]
[421980594,1778400738000,-949.0,0.00041832,60]
[421980601,1778400738000,-250.0,0.00041847,109]
[421980624,1778400738000,-250.0,0.0004188,111]
[421980638,1778400738000,-250.0,0.00041903,113]
[421980625,1778400738000,-2683.86110509,0.0004188,120]
[421980653,1778400738000,-250.0,0.00041952,118]
[421980650,1778400738000,-250.0,0.0004194,117]
[421980651,1778400738000,-250.0,0.00041944,117]
[421980655,1778400738000,-250.0,0.00041959,119]
[421980654,1778400738000,-250.0,0.00041956,118]
[421980656,1778400738000,-250.0,0.00041963,119]
[421980657,1778400738000,-250.0,0.00041966,119]
[421980658,1778400738000,-151.79,0.00041969,120]
[421980652,1778400738000,-250.0,0.00041948,117]
[421980660,1778400738000,-300.0,0.0004197,3]
[421980670,1778400738000,-1798.80895522,0.00041999,30]
[421980659,1778400738000,-250.0,0.00041969,120]
[421980661,1778400738000,-484.00243033,0.0004197,3]
[421980665,1778400738000,-250.0,0.00041973,120]
[421980669,1778400738000,-1865.36488657,0.00041997,30]
[421980662,1778400738000,-1000.0,0.0004197,3]
[421980663,1778400738000,-250.0,0.00041973,120]
[421980666,1778400738000,-250.0,0.00041973,120]
[421980664,1778400738000,-260.9,0.00041973,120]
[421980668,1778400738000,-1934.38338737,0.00041996,30]
[421980622,1778400738000,-1000.0,0.0004187,3]
[421980649,1778400738000,-250.0,0.00041936,116]
[421980648,1778400738000,-250.0,0.00041932,116]
[421980667,1778400738000,-163.78,0.00041991,30]
[421980642,1778400738000,-1561.0,0.00041918,120]
[421980645,1778400738000,-200.0,0.00041922,7]
[421980623,1778400738000,-250.0,0.00041874,111]
[421980627,1778400738000,-153.93,0.0004189,120]
[421980629,1778400738000,-250.0,0.00041897,113]
[421980619,1778400738000,-151.79,0.00041869,120]
[421980628,1778400738000,-250.0,0.00041892,112]
[421980631,1778400738000,-2070.24614244,0.000419,5]
[421980630,1778400738000,-2005.9555727,0.00041899,30]
[421980632,1778400738000,-448.16036068,0.000419,20]
[421980634,1778400738000,-1000.0,0.000419,120]
[421980633,1778400738000,-9500.0,0.000419,14]
[421980626,1778400738000,-250.0,0.00041886,112]
[421980647,1778400738000,-250.0,0.00041927,115]
[421980646,1778400738000,-250.0,0.00041923,115]
[421980644,1778400738000,-200.0,0.00041922,7]
[421980639,1778400738000,-250.0,0.00041908,114]
[421980641,1778400738000,-250.0,0.00041913,114]
[421980643,1778400738000,-250.0,0.00041918,115]
[421980635,1778400738000,-200.0,0.000419,17]
[421980671,1778400738000,-500.0,0.00042,2]
[421980636,1778400738000,-365.11986713,0.000419,120]
[421980637,1778400738000,-162.15870515,0.000419,120]
[421980640,1778400738000,-151.81,0.00041909,120]
[421980698,1778400739000,-1000000.0,0.00042,120]
[421980695,1778400739000,-1000000.0,0.00042,120]
[421980700,1778400739000,-1000000.0,0.00042,120]
[421980705,1778400739000,-1000000.0,0.00042,120]
[421980703,1778400739000,-1000000.0,0.00042,120]
[421980706,1778400739000,-1000000.0,0.00042,120]
[421980699,1778400739000,-1000000.0,0.00042,120]
[421980707,1778400739000,-1000000.0,0.00042,120]
[421980696,1778400739000,-1000000.0,0.00042,120]
[421980697,1778400739000,-1000000.0,0.00042,120]
[421980702,1778400739000,-1000000.0,0.00042,120]
[421980701,1778400739000,-1000000.0,0.00042,120]
[421980708,1778400739000,-1000000.0,0.00042,120]
[421980711,1778400739000,-1000000.0,0.00042,120]
[421980710,1778400739000,-1000000.0,0.00042,120]
[421980693,1778400739000,-1000000.0,0.00042,120]
[421980713,1778400739000,-1000000.0,0.00042,120]
[421980704,1778400739000,-1000000.0,0.00042,120]
[421980694,1778400739000,-1000000.0,0.00042,120]
[421980683,1778400739000,-1000.0,0.00042,120]
[421980687,1778400739000,-11842.09653462,0.00042,120]
[421980714,1778400739000,-151.9872294,0.00042,120]
[421980672,1778400739000,-583.43180259,0.00042,5]
[421980673,1778400739000,-14179.2315157,0.00042,2]
[421980674,1778400739000,-400.39727975,0.00042,2]
[421980676,1778400739000,-25335.36147116,0.00042,2]
[421980677,1778400739000,-53771.41174317,0.00042,7]
[421980680,1778400739000,-872.21149206,0.00042,120]
[421980678,1778400739000,-500.0,0.00042,45]
[421980675,1778400739000,-356.86485,0.00042,14]
[421980679,1778400739000,-1449.97607698,0.00042,120]
[421980682,1778400739000,-500.0,0.00042,45]
[421980681,1778400739000,-1045.82646562,0.00042,120]
[421980691,1778400739000,-1000000.0,0.00042,120]
[421980686,1778400739000,-50000.0,0.00042,120]
[421980689,1778400739000,-50000.0,0.00042,120]
[421980685,1778400739000,-14207.0,0.00042,120]
[421980690,1778400739000,-9855.00996337,0.00042,120]
[421980688,1778400739000,-2936.13376423,0.00042,120]
[421980684,1778400739000,-4045.288292,0.00042,120]
[421980692,1778400739000,-1000000.0,0.00042,120]
[421980715,1778400739000,-402863.0,0.00042,120]
[421980709,1778400739000,-1000000.0,0.00042,120]
[421980717,1778400739000,-1000000.0,0.00042,120]
[421980735,1778400739000,-895.111196,0.00042,120]
[421980738,1778400739000,-895.111196,0.00042,120]
[421980737,1778400739000,-895.111196,0.00042,120]
[421980744,1778400739000,-895.111196,0.00042,120]
[421980743,1778400739000,-895.111196,0.00042,120]
[421980745,1778400739000,-895.111196,0.00042,120]
[421980749,1778400739000,-895.111203,0.00042,120]
[421980748,1778400739000,-895.111196,0.00042,120]
[421980736,1778400739000,-895.111196,0.00042,120]
[421980747,1778400739000,-895.111196,0.00042,120]
[421980751,1778400739000,-151.0,0.00042,120]
[421980757,1778400739000,-151.0,0.00042,120]
[421980753,1778400739000,-162.349892,0.00042,120]
[421980754,1778400739000,-162.349892,0.00042,120]
[421980756,1778400739000,-162.349892,0.00042,120]
[421980750,1778400739000,-151.0,0.00042,120]
[421980755,1778400739000,-162.349892,0.00042,120]
[421980712,1778400739000,-1000000.0,0.00042,120]
[421980746,1778400739000,-895.111196,0.00042,120]
[421980742,1778400739000,-895.111196,0.00042,120]
[421980752,1778400739000,-220.500774,0.00042,120]
[421980740,1778400739000,-895.111196,0.00042,120]
[421980720,1778400739000,-1000000.0,0.00042,120]
[421980741,1778400739000,-895.111196,0.00042,120]
[421980716,1778400739000,-50000.0,0.00042,120]
[421980718,1778400739000,-1000000.0,0.00042,120]
[421980719,1778400739000,-1000000.0,0.00042,120]
[421980721,1778400739000,-1000000.0,0.00042,120]
[421980724,1778400739000,-1000000.0,0.00042,120]
[421980725,1778400739000,-1000000.0,0.00042,120]
[421980723,1778400739000,-1000000.0,0.00042,120]
[421980722,1778400739000,-1000000.0,0.00042,120]
[421980727,1778400739000,-2500.0,0.00042,120]
[421980729,1778400739000,-895.111196,0.00042,120]
[421980728,1778400739000,-1555410.0,0.00042,120]
[421980733,1778400739000,-895.111196,0.00042,120]
[421980734,1778400739000,-895.111196,0.00042,120]
[421980731,1778400739000,-181.601437,0.00042,120]
[421980730,1778400739000,-895.111196,0.00042,120]
[421980726,1778400739000,-50000.0,0.00042,120]
[421980732,1778400739000,-895.111196,0.00042,120]
[421980739,1778400739000,-895.111196,0.00042,120]
[421980803,1778400740000,-151.0,0.00042,120]
[421980793,1778400740000,-208.261282,0.00042,28]
[421980794,1778400740000,-208.261282,0.00042,28]
[421980790,1778400740000,-208.261282,0.00042,28]
[421980788,1778400740000,-208.261282,0.00042,28]
[421980792,1778400740000,-208.261282,0.00042,28]
[421980789,1778400740000,-208.261282,0.00042,28]
[421980787,1778400740000,-208.261282,0.00042,28]
[421980802,1778400740000,-151.0,0.00042,120]
[421980785,1778400740000,-208.261282,0.00042,28]
[421980791,1778400740000,-208.261282,0.00042,28]
[421980804,1778400740000,-151.0,0.00042,120]
[421980806,1778400740000,-151.0,0.00042,120]
[421980795,1778400740000,-208.261282,0.00042,28]
[421980796,1778400740000,-208.261282,0.00042,28]
[421980798,1778400740000,-208.261282,0.00042,28]
[421980801,1778400740000,-151.0,0.00042,120]
[421980799,1778400740000,-208.26127892,0.00042,28]
[421980800,1778400740000,-151.0,0.00042,120]
[421980816,1778400740000,-151.0,0.00042,120]
[421980809,1778400740000,-151.0,0.00042,120]
[421980805,1778400740000,-151.0,0.00042,120]
[421980808,1778400740000,-151.0,0.00042,120]
[421980784,1778400740000,-208.261282,0.00042,28]
[421980797,1778400740000,-208.261282,0.00042,28]
[421980783,1778400740000,-208.261282,0.00042,28]
[421980761,1778400740000,-151.0,0.00042,120]
[421980782,1778400740000,-208.261282,0.00042,28]
[421980760,1778400740000,-181.3037,0.00042,120]
[421980759,1778400740000,-162.349892,0.00042,120]
[421980758,1778400740000,-151.0,0.00042,120]
[421980765,1778400740000,-171.75671,0.00042,120]
[421980770,1778400740000,-162.349892,0.00042,120]
[421980769,1778400740000,-162.349892,0.00042,120]
[421980762,1778400740000,-162.349892,0.00042,120]
[421980767,1778400740000,-162.349892,0.00042,120]
[421980768,1778400740000,-162.349892,0.00042,120]
[421980764,1778400740000,-162.349892,0.00042,120]
[421980763,1778400740000,-151.0,0.00042,120]
[421980786,1778400740000,-208.261282,0.00042,28]
[421980766,1778400740000,-162.349892,0.00042,120]
[421980772,1778400740000,-162.349892,0.00042,120]
[421980776,1778400740000,-162.349892,0.00042,120]
[421980771,1778400740000,-162.349892,0.00042,120]
[421980807,1778400740000,-151.0,0.00042,120]
[421980781,1778400740000,-208.261282,0.00042,28]
[421980778,1778400740000,-162.349885,0.00042,120]
[421980775,1778400740000,-162.349892,0.00042,120]
[421980780,1778400740000,-208.261282,0.00042,28]
[421980774,1778400740000,-162.349892,0.00042,120]
[421980779,1778400740000,-180.032254,0.00042,120]
[421980777,1778400740000,-162.349892,0.00042,120]
[421980773,1778400740000,-162.349892,0.00042,120]
[421980810,1778400740000,-151.0,0.00042,120]
[421980854,1778400740000,-764.892861,0.00042,120]
[421980811,1778400740000,-151.0,0.00042,120]
[421980842,1778400740000,-764.892861,0.00042,120]
[421980844,1778400740000,-3308.252344,0.00042,120]
[421980843,1778400740000,-764.892861,0.00042,120]
[421980847,1778400740000,-764.892861,0.00042,120]
[421980851,1778400740000,-764.892861,0.00042,120]
[421980850,1778400740000,-3308.252344,0.00042,120]
[421980848,1778400740000,-3308.252344,0.00042,120]
[421980846,1778400740000,-3308.252344,0.00042,120]
[421980853,1778400740000,-3308.252344,0.00042,120]
[421980852,1778400740000,-764.892861,0.00042,120]
[421980849,1778400740000,-764.892861,0.00042,120]
[421980835,1778400740000,-1000000.0,0.00042,120]
[421980856,1778400740000,-764.892861,0.00042,120]
[421980866,1778400740000,-3308.252344,0.00042,120]
[421980858,1778400740000,-764.892861,0.00042,120]
[421980857,1778400740000,-3308.252344,0.00042,120]
[421980863,1778400740000,-764.892861,0.00042,120]
[421980859,1778400740000,-3308.252344,0.00042,120]
[421980864,1778400740000,-3308.252344,0.00042,120]
[421980865,1778400740000,-764.892862,0.00042,120]
[421980860,1778400740000,-764.892861,0.00042,120]
[421980861,1778400740000,-764.892861,0.00042,120]
[421980862,1778400740000,-3308.252344,0.00042,120]
[421980814,1778400740000,-151.0,0.00042,120]
[421980855,1778400740000,-3308.252344,0.00042,120]
[421980838,1778400740000,-764.892861,0.00042,120]
[421980845,1778400740000,-764.892861,0.00042,120]
[421980834,1778400740000,-1000000.0,0.00042,120]
[421980813,1778400740000,-151.0,0.00042,120]
[421980839,1778400740000,-764.892861,0.00042,120]
[421980812,1778400740000,-151.0,0.00042,120]
[421980815,1778400740000,-151.0,0.00042,120]
[421980817,1778400740000,-151.0,0.00042,120]
[421980819,1778400740000,-151.0,0.00042,120]
[421980820,1778400740000,-151.0,0.00042,120]
[421980826,1778400740000,-151.0,0.00042,120]
[421980818,1778400740000,-151.0,0.00042,120]
[421980828,1778400740000,-151.0,0.00042,120]
[421980824,1778400740000,-151.0,0.00042,120]
[421980822,1778400740000,-151.0,0.00042,120]
[421980821,1778400740000,-151.0,0.00042,120]
[421980841,1778400740000,-764.892861,0.00042,120]
[421980827,1778400740000,-151.0,0.00042,120]
[421980837,1778400740000,-764.892861,0.00042,120]
[421980836,1778400740000,-764.892861,0.00042,120]
[421980833,1778400740000,-185.3894901,0.00042,30]
[421980831,1778400740000,-151.0,0.00042,120]
[421980832,1778400740000,-162.507967,0.00042,120]
[421980829,1778400740000,-151.0,0.00042,120]
[421980830,1778400740000,-234.407325,0.00042,120]
[421980823,1778400740000,-151.0,0.00042,120]
[421980825,1778400740000,-151.0,0.00042,120]
[421980840,1778400740000,-764.892861,0.00042,120]
[421980907,1778400741000,-272.261003,0.00042,120]
[421980913,1778400741000,-151.0,0.00042,120]
[421980910,1778400741000,-151.0,0.00042,120]
[421980906,1778400741000,-151.0,0.00042,120]
[421980900,1778400741000,-151.0,0.00042,120]
[421980898,1778400741000,-151.0,0.00042,120]
[421980903,1778400741000,-151.0,0.00042,120]
[421980902,1778400741000,-2000000.0,0.00042,120]
[421980894,1778400741000,-151.0,0.00042,120]
[421980901,1778400741000,-2000000.0,0.00042,120]
[421980908,1778400741000,-151.0,0.00042,120]
[421980896,1778400741000,-151.0,0.00042,120]
[421980909,1778400741000,-151.0,0.00042,120]
[421980928,1778400741000,-5290.682669,0.00042,14]
[421980916,1778400741000,-5290.682669,0.00042,14]
[421980905,1778400741000,-151.0,0.00042,120]
[421980914,1778400741000,-5290.682669,0.00042,14]
[421980911,1778400741000,-151.0,0.00042,120]
[421980915,1778400741000,-151.0,0.00042,120]
[421980929,1778400741000,-151.0,0.00042,120]
[421980919,1778400741000,-151.0,0.00042,120]
[421980927,1778400741000,-151.0,0.00042,120]
[421980918,1778400741000,-5290.682669,0.00042,14]
[421980925,1778400741000,-151.0,0.00042,120]
[421980926,1778400741000,-5290.682669,0.00042,14]
[421980893,1778400741000,-2000000.0,0.00042,120]
[421980912,1778400741000,-5290.682669,0.00042,14]
[421980892,1778400741000,-204.676044,0.00042,120]
[421980870,1778400741000,-3308.252344,0.00042,120]
[421980899,1778400741000,-2000000.0,0.00042,120]
[421980867,1778400741000,-3308.252344,0.00042,120]
[421980868,1778400741000,-3308.252344,0.00042,120]
[421980923,1778400741000,-151.0,0.00042,120]
[421980869,1778400741000,-3308.252344,0.00042,120]
[421980872,1778400741000,-2000000.0,0.00042,120]
[421980873,1778400741000,-2000000.0,0.00042,120]
[421980876,1778400741000,-151.0,0.00042,120]
[421980874,1778400741000,-151.0,0.00042,120]
[421980878,1778400741000,-151.0,0.00042,120]
[421980877,1778400741000,-2000000.0,0.00042,120]
[421980875,1778400741000,-2000000.0,0.00042,120]
[421980880,1778400741000,-151.0,0.00042,120]
[421980897,1778400741000,-2000000.0,0.00042,120]
[421980891,1778400741000,-2000000.0,0.00042,120]
[421980890,1778400741000,-151.0,0.00042,120]
[421980882,1778400741000,-2000000.0,0.00042,120]
[421980881,1778400741000,-2000000.0,0.00042,120]
[421980889,1778400741000,-2000000.0,0.00042,120]
[421980883,1778400741000,-2000000.0,0.00042,120]
[421980885,1778400741000,-2000000.0,0.00042,120]
[421980887,1778400741000,-151.0,0.00042,120]
[421980884,1778400741000,-2000000.0,0.00042,120]
[421980886,1778400741000,-151.0,0.00042,120]
[421980888,1778400741000,-2000000.0,0.00042,120]
[421980895,1778400741000,-2000000.0,0.00042,120]
[421980904,1778400741000,-2000000.0,0.00042,120]
[421980879,1778400741000,-2000000.0,0.00042,120]
[421980922,1778400741000,-5290.682669,0.00042,14]